bitfinex/quotes_SOLUSD_20220306
["timestamp","ask_amount","ask_price","bid_price","bid_amount"]
[1646586434094,417.3166607,87.258,87.18,30.9862]
[1646586434394,3.513,87.257,87.18,30.9862]
[1646586434592,417.3166607,87.258,87.181,113.4]
[1646586434793,3.521,87.257,87.181,113.4]
[1646586434993,3.521,87.257,87.201,51.19916182]
[1646586436196,3.521,87.257,87.21,17.2009]
[1646586436797,3.521,87.257,87.21,30.9809]
[1646586437599,417.3166607,87.258,87.21,30.9809]
[1646586439001,55.59324638,87.263,87.21,30.9809]
[1646586439602,55.59324638,87.263,87.21,13.78]
[1646586439802,55.59324638,87.263,87.201,51.19916182]
[1646586440001,17.2094,87.26,87.201,51.19916182]
[1646586440204,116.807,87.259,87.182,47.4109]
[1646586440502,0.42339409,87.258,87.182,47.4109]
[1646586440702,0.42339409,87.256,87.182,47.4109]
[1646586440902,0.42339409,87.254,87.18,17.2094]
[1646586441104,3.338,87.253,87.181,49.98450849]
[1646586441301,20.5229,87.26,87.181,49.98450849]
[1646586441808,113.4,87.259,87.181,49.98450849]
[1646586442002,3.291,87.258,87.181,49.98450849]
[1646586442803,3.267,87.259,87.181,49.98450849]
[1646586443004,3.267,87.259,87.19,17.2074]
[1646586443203,3.45,87.261,87.19,17.2074]
[1646586444608,3.45,87.261,87.19,30.9874]
[1646586444806,3.45,87.261,87.191,113.4]
[1646586445007,3.45,87.261,87.21,17.2002]
[1646586445212,3.45,87.261,87.211,48.82441935]
[1646586446810,3.45,87.261,87.212,113.4]
[1646586447111,3.45,87.261,87.22,17.1986]
[1646586447309,3.45,87.261,87.23,13.78]
[1646586447710,3.45,87.261,87.231,50.42287033]
[1646586447910,57.27395349,87.263,87.231,50.42287033]
[1646586448713,3.547,87.283,87.231,50.42287033]
[1646586449815,59.63430721,87.282,87.231,50.42287033]
[1646586450416,59.63430721,87.282,87.21,13.78]
[1646586450616,113.4,87.281,87.21,13.78]
[1646586450816,0.50618732,87.28,87.19,13.78]
[1646586451119,113.4,87.269,87.19,13.78]
[1646586451324,113.4,87.267,87.191,47.36728885]
[1646586451520,3.544,87.266,87.191,47.36728885]
[1646586451717,3.95946682,87.266,87.17,13.78]
[1646586451917,3.95946682,87.266,87.143,22.7579]
[1646586452119,3.95946682,87.266,87.15,13.78]
[1646586452320,2.76476554,87.265,87.15,13.78]
[1646586452517,4.08155703,87.264,87.15,13.78]
[1646586452717,4.08155703,87.264,87.162,52.3836084]
[1646586452919,2.76476554,87.263,87.162,52.3836084]
[1646586453119,2.76476554,87.263,87.17,17.2124]
[1646586453120,17.2105,87.25,87.17,17.2124]
[1646586453319,175.03070777,87.249,87.17,17.2124]
[1646586453519,435.96177672,87.227,87.17,17.2124]
[1646586453719,54.60293755,87.226,87.17,17.2124]
[1646586454120,54.60293755,87.226,87.15,17.2166]
[1646586454328,116.937,87.225,87.094,3.10585395]
[1646586454525,113.4,87.221,87.095,48.3194]
[1646586454720,113.4,87.219,87.095,48.3194]
[1646586454921,3.535,87.218,87.1,13.78]
[1646586455119,0.86560978,87.217,87.101,46.7965233]
[1646586455321,3.457,87.216,87.11,13.78]
[1646586455522,0.86560978,87.215,87.11,13.78]
[1646586455721,3.379,87.214,87.11,13.78]
[1646586455920,24.80520978,87.213,87.11,13.78]
[1646586456120,48.8439833,87.212,87.12,17.2223]
[1646586456321,0.86560978,87.211,87.121,57.18492271]
[1646586456521,3.262,87.21,87.122,113.4]
[1646586456725,45.5429833,87.212,87.122,113.4]
[1646586456920,45.5429833,87.212,87.121,57.18492271]
[1646586457221,113.4,87.209,87.121,57.18492271]
[1646586457424,3.57371731,87.208,87.121,57.18492271]
[1646586457621,3.107,87.208,87.121,57.18492271]
[1646586457822,45.5429833,87.212,87.121,57.18492271]
[1646586459121,45.5429833,87.212,87.13,17.2205]
[1646586460225,45.5429833,87.212,87.13,31.0005]
[1646586460626,3.459,87.219,87.131,113.4]
[1646586460825,3.459,87.219,87.15,17.2061]
[1646586461025,3.459,87.219,87.16,13.78]
[1646586461426,3.499,87.265,87.16,13.78]
[1646586461625,60.67435422,87.224,87.161,61.7429596]
[1646586462426,60.67435422,87.224,87.17,17.2068]
[1646586462628,3.539,87.225,87.17,17.2068]
[1646586463646,3.539,87.225,87.17,30.9868]
[1646586464648,3.498,87.233,87.17,30.9868]
[1646586465151,3.456,87.25,87.17,30.9868]
[1646586465849,3.456,87.25,87.171,113.4]
[1646586466050,3.456,87.25,87.19,17.2023]
[1646586466250,3.414,87.251,87.191,48.69075939]
[1646586466452,367.07351853,87.252,87.191,48.69075939]
[1646586467050,3.331,87.251,87.192,113.4]
[1646586467261,3.456,87.268,87.192,113.4]
[1646586467451,3.456,87.268,87.191,48.69075939]
[1646586467653,3.456,87.268,87.2,17.2036]
[1646586467850,3.456,87.268,87.2,30.9836]
[1646586468553,3.456,87.268,87.201,113.4]
[1646586469156,3.456,87.268,87.22,17.1955]
[1646586469352,3.456,87.268,87.221,57.7270373]
[1646586471354,3.456,87.268,87.23,17.1962]
[1646586471955,47.41598166,87.267,87.23,17.1962]
[1646586472156,47.41598166,87.267,87.221,57.7270373]
[1646586474157,47.41598166,87.267,87.23,17.2013]
[1646586474360,5.06617238,87.282,87.23,17.2013]
[1646586474558,1.52617238,87.282,87.23,17.2013]
[1646586474758,1.52617238,87.288,87.23,30.9813]
[1646586474958,1.52617238,87.293,87.23,30.9813]
[1646586475160,1.52617238,87.29,87.23,30.9813]
[1646586475362,57.60254258,87.289,87.23,30.9813]
[1646586479566,59.12871496,87.289,87.23,30.9813]
[1646586479967,1.52617238,87.288,87.23,30.9813]
[1646586481068,57.60254258,87.289,87.23,30.9813]
[1646586483671,57.60254258,87.289,87.23,13.78]
[1646586483870,57.60254258,87.289,87.221,57.7270373]
[1646586483871,1.52617238,87.284,87.221,57.7270373]
[1646586484070,1.52617238,87.278,87.221,57.7270373]
[1646586484270,1.52617238,87.276,87.221,57.7270373]
[1646586484473,51.5530791,87.275,87.221,57.7270373]
[1646586484671,51.09965498,87.275,87.221,57.7270373]
[1646586485071,1.52617238,87.27,87.221,57.7270373]
[1646586485671,1.52617238,87.272,87.221,57.7270373]
[1646586487074,1.52617238,87.269,87.221,57.7270373]
[1646586487272,1.52617238,87.267,87.221,57.7270373]
[1646586487975,1.52617238,87.267,87.23,17.1988]
[1646586488172,1.52617238,87.271,87.23,17.1988]
[1646586488576,1.52617238,87.272,87.23,17.1988]
[1646586488974,1.52617238,87.273,87.23,17.1988]
[1646586489203,1.52617238,87.265,87.23,17.1988]
[1646586489674,1.52617238,87.264,87.23,17.1988]
[1646586490577,1.52617238,87.264,87.221,57.7270373]
[1646586490779,1.52617238,87.263,87.221,57.7270373]
[1646586491276,1.52617238,87.259,87.221,57.7270373]
[1646586491578,47.17341117,87.258,87.221,57.7270373]
[1646586491780,45.64723879,87.258,87.221,57.7270373]
[1646586492476,1.52617238,87.257,87.221,57.7270373]
[1646586492675,1.52617238,87.256,87.23,17.1984]
[1646586492876,1.52617238,87.269,87.23,17.1984]
[1646586493079,1.52617238,87.273,87.23,30.9784]
[1646586493477,1.52617238,87.271,87.23,30.9784]
[1646586493778,1.52617238,87.268,87.23,30.9784]
[1646586494680,1.52617238,87.262,87.23,30.9784]
[1646586494879,1.52617238,87.263,87.23,30.9784]
[1646586495080,1.52617238,87.264,87.23,30.9784]
[1646586495280,1.52617238,87.265,87.23,30.9784]
[1646586495879,1.52617238,87.265,87.231,113.4]
[1646586496079,1.52617238,87.267,87.24,17.1939]
[1646586496280,1.52617238,87.267,87.24,30.9739]
[1646586496979,6.26881567,87.296,87.24,30.9739]
[1646586496980,1.52617238,87.268,87.24,30.9739]
[1646586497279,1.52617238,87.266,87.241,52.07580655]
[1646586497480,1.52617238,87.266,87.25,17.1943]
[1646586497680,1.52617238,87.267,87.25,17.1943]
[1646586497880,1.52617238,87.266,87.25,17.1943]
[1646586499181,1.52617238,87.266,87.241,52.07580655]
[1646586499584,1.52617238,87.267,87.241,52.07580655]
[1646586501087,1.52617238,87.269,87.241,52.07580655]
[1646586501287,1.52617238,87.27,87.241,52.07580655]
[1646586502187,1.52617238,87.267,87.241,52.07580655]
[1646586502387,1.52617238,87.266,87.241,52.07580655]
[1646586502988,1.52617238,87.265,87.241,52.07580655]
[1646586503389,27.5355,87.299,87.241,52.07580655]
[1646586503390,1.52617238,87.266,87.241,52.07580655]
[1646586504415,1.52617238,87.265,87.241,52.07580655]
[1646586504812,1.52617238,87.266,87.241,52.07580655]
[1646586505015,3.08063976,87.29,87.244,113.4]
[1646586505215,13.78,87.37,87.244,113.4]
[1646586505216,3.08063976,87.302,87.244,113.4]
[1646586505418,3.08063976,87.317,87.244,113.4]
[1646586505611,22.7789,87.326,87.251,113.4]
[1646586505612,3.08063976,87.318,87.251,113.4]
[1646586505811,46.80359519,87.315,87.26,13.78]
[1646586506019,6.26712426,87.314,87.261,56.62364981]
[1646586506614,46.80359519,87.315,87.27,17.1897]
[1646586506812,46.80359519,87.315,87.27,30.9697]
[1646586507015,3.08063976,87.322,87.27,30.9697]
[1646586507016,3.08063976,87.323,87.27,30.9697]
[1646586507213,3.08063976,87.322,87.27,30.9697]
[1646586507815,3.08063976,87.323,87.27,30.9697]
[1646586508319,6.26710686,87.325,87.27,30.9697]
[1646586510415,22.7789,87.326,87.27,30.9697]
[1646586511019,3.08063976,87.334,87.27,30.9697]
[1646586511216,3.08063976,87.336,87.27,30.9697]
[1646586511417,64.0196096,87.335,87.27,30.9697]
[1646586511819,6.26665874,87.334,87.27,30.9697]
[1646586512218,6.26665874,87.334,87.281,113.4]
[1646586512421,9.3472985,87.343,87.29,13.78]
[1646586512618,24.5318,87.344,87.29,23.41]
[1646586513018,24.5318,87.344,87.291,47.11569986]
[1646586513420,24.5318,87.344,87.3,17.1844]
[1646586514019,24.5318,87.344,87.291,47.11569986]
[1646586514419,45.83214584,87.342,87.291,47.11569986]
[1646586514619,3.497,87.341,87.291,47.11569986]
[1646586515820,2.997,87.341,87.3,17.1847]
[1646586516425,2.997,87.341,87.291,47.11569986]
[1646586518924,2.997,87.341,87.3,17.1846]
[1646586519326,2.997,87.341,87.291,5.726]
[1646586519327,2.997,87.341,87.28,13.78]
[1646586519526,3.08063976,87.339,87.277,5.726]
[1646586519728,3.08063976,87.334,87.25,13.78]
[1646586519926,3.08063976,87.331,87.25,13.78]
[1646586520126,0.44211304,87.33,87.251,5.728]
[1646586520329,17.63801304,87.33,87.251,64.5337173]
[1646586520527,29.48708922,87.329,87.251,64.5337173]
[1646586520728,57.7762146,87.328,87.251,58.8057173]
[1646586520926,6.26698922,87.327,87.251,58.8057173]
[1646586521129,51.50922538,87.328,87.251,58.8057173]
[1646586521329,6.26728102,87.327,87.252,5.728]
[1646586522125,6.26728102,87.327,87.26,17.1928]
[1646586522326,6.26728102,87.327,87.261,5.727]
[1646586522724,6.26728102,87.327,87.252,5.727]
[1646586523425,6.26728102,87.327,87.27,17.1903]
[1646586523629,6.26728102,87.327,87.271,59.40829358]
[1646586524129,6.26728102,87.327,87.251,5.727]
[1646586524330,9.34792078,87.327,87.251,5.727]
[1646586524528,3.08063976,87.324,87.25,13.78]
[1646586524729,3.08063976,87.323,87.25,13.78]
[1646586524928,3.08063976,87.322,87.25,13.78]
[1646586525129,17.1941,87.32,87.251,47.1425663]
[1646586525330,3.08063976,87.318,87.251,47.1425663]
[1646586525534,3.08063976,87.315,87.251,47.1425663]
[1646586525729,61.29688139,87.314,87.231,5.728]
[1646586526130,17.1982,87.3,87.212,5.729]
[1646586526433,113.93292752,87.298,87.212,5.729]
[1646586526629,113.4,87.296,87.212,5.729]
[1646586526833,171.01659715,87.295,87.213,46.02776928]
[1646586527031,113.4,87.293,87.214,5.73]
[1646586527231,113.4,87.293,87.213,46.02776928]
[1646586527232,113.4,87.291,87.213,46.02776928]
[1646586527432,113.4,87.289,87.213,46.02776928]
[1646586527632,0.56161139,87.286,87.214,5.73]
[1646586527833,119.66728102,87.285,87.214,5.73]
[1646586528034,0.56161139,87.284,87.214,5.73]
[1646586528234,6.82889241,87.284,87.214,5.73]
[1646586528435,17.2024,87.28,87.22,17.203]
[1646586528636,59.95520674,87.279,87.22,17.203]
[1646586530839,23.8261,87.288,87.23,17.1993]
[1646586531439,18.8261,87.288,87.23,17.1993]
[1646586532944,18.8261,87.288,87.23,30.9793]
[1646586533343,18.8261,87.288,87.24,17.1969]
[1646586533544,18.8261,87.288,87.241,55.27420858]
[1646586535145,18.8261,87.288,87.25,17.1968]
[1646586535346,18.8261,87.288,87.241,55.27420858]
[1646586536347,18.8261,87.288,87.24,17.1975]
[1646586539170,2.994,87.287,87.24,17.1975]
[1646586541978,18.8261,87.288,87.24,17.1975]
[1646586544880,3.08063976,87.311,87.24,17.1975]
[1646586545080,3.003,87.31,87.24,17.1975]
[1646586545281,3.003,87.31,87.241,5.729]
[1646586545481,31.24916985,87.315,87.241,5.729]
[1646586545482,24.9803,87.315,87.26,17.1907]
[1646586546888,6.26809647,87.314,87.27,17.185]
[1646586547092,3.08063976,87.329,87.27,17.185]
[1646586547288,3.08063976,87.33,87.27,17.185]
[1646586547488,3.08063976,87.327,87.27,30.965]
[1646586547686,3.08063976,87.327,87.271,64.28937045]
[1646586547886,62.97265114,87.332,87.272,5.727]
[1646586547887,3.08063976,87.325,87.272,5.727]
[1646586548287,9.34873623,87.331,87.272,5.727]
[1646586548586,6.26809647,87.331,87.272,5.727]
[1646586549187,6.26809647,87.331,87.28,17.1894]
[1646586550688,2.975,87.336,87.28,17.1894]
[1646586550888,6.26809647,87.335,87.28,17.1894]
[1646586551087,2.963,87.334,87.28,17.1894]
[1646586551290,6.26809647,87.333,87.28,17.1894]
[1646586551688,6.26809647,87.335,87.28,17.1894]
[1646586551890,2.939,87.334,87.28,17.1894]
[1646586552090,6.26809647,87.333,87.28,17.1894]
[1646586552690,6.26809647,87.336,87.28,17.1894]
[1646586552889,3.08063976,87.338,87.28,17.1894]
[1646586552890,6.26809647,87.332,87.28,17.1894]
[1646586553095,6.26809647,87.335,87.28,17.1894]
[1646586553289,2.891,87.334,87.28,17.1894]
[1646586553491,6.26809647,87.334,87.28,17.1894]
[1646586553694,17.1928,87.33,87.272,5.727]
[1646586553890,9.12309647,87.329,87.272,5.727]
[1646586554093,119.66809647,87.328,87.272,5.727]
[1646586554291,3.08063976,87.322,87.272,5.727]
[1646586554491,0.54098636,87.321,87.23,13.78]
[1646586554692,113.4,87.319,87.23,13.78]
[1646586554895,17.1966,87.31,87.24,17.1984]
[1646586555094,48.69203653,87.308,87.24,17.1984]
[1646586555294,6.26809647,87.307,87.24,17.1984]
[1646586558194,9.34873623,87.307,87.24,17.1984]
[1646586558394,6.26809647,87.307,87.24,17.1984]
[1646586561594,6.26809647,87.307,87.24,30.9784]
[1646586562197,6.26809647,87.311,87.24,30.9784]
[1646586562400,2.999,87.31,87.24,30.9784]
[1646586562698,6.26809647,87.309,87.24,30.9784]
[1646586562899,49.3386423,87.308,87.24,30.9784]
[1646586563098,6.26809647,87.307,87.24,30.9784]
[1646586563497,49.3386423,87.308,87.24,30.9784]
[1646586563697,6.26825622,87.307,87.24,30.9784]
[1646586563899,49.3386423,87.308,87.24,30.9784]
[1646586564103,2.999,87.307,87.24,30.9784]
[1646586565002,6.07963976,87.316,87.24,30.9784]
[1646586565200,6.26806901,87.315,87.24,30.9784]
[1646586565403,3.08063976,87.317,87.24,30.9784]
[1646586565602,3.08063976,87.316,87.24,30.9784]
[1646586565801,47.03746093,87.315,87.24,30.9784]
[1646586566001,6.26806901,87.314,87.24,30.9784]
[1646586566400,17.1962,87.31,87.24,30.9784]
[1646586566601,6.26806901,87.309,87.24,30.9784]
[1646586566808,3.001,87.308,87.24,30.9784]
[1646586567001,3.08063976,87.306,87.24,30.9784]
[1646586567201,3.001,87.305,87.24,30.9784]
[1646586567402,116.48063976,87.305,87.231,46.58539883]
[1646586567602,3.08063976,87.304,87.231,46.58539883]
[1646586567804,3.08063976,87.298,87.231,46.58539883]
[1646586568004,17.2014,87.29,87.231,46.58539883]
[1646586568202,0.40287945,87.289,87.231,46.58539883]
[1646586568405,0.40963075,87.296,87.231,46.58539883]
[1646586568703,122.67050278,87.295,87.231,46.58539883]
[1646586569104,0.40963075,87.289,87.231,46.58539883]
[1646586569303,51.74522511,87.287,87.231,46.58539883]
[1646586569703,2.997,87.286,87.231,46.58539883]
[1646586570706,2.997,87.286,87.24,17.199]
[1646586570905,2.993,87.295,87.24,17.199]
[1646586571103,6.26958681,87.294,87.24,17.199]
[1646586571306,2.989,87.293,87.24,17.199]
[1646586571504,6.26958681,87.294,87.24,17.199]
[1646586571704,3.08063976,87.311,87.24,17.199]
[1646586571902,3.08063976,87.311,87.232,5.729]
[1646586571903,3.08063976,87.309,87.25,17.1951]
[1646586572104,2.979,87.301,87.25,17.1951]
[1646586572507,3.08063976,87.313,87.25,17.1951]
[1646586572705,3.08063976,87.315,87.25,17.1951]
[1646586572904,24.0796,87.32,87.25,30.9751]
[1646586573107,9.24147714,87.319,87.25,30.9751]
[1646586573305,6.26747714,87.318,87.25,30.9751]
[1646586573605,2.975,87.317,87.25,30.9751]
[1646586573804,2.975,87.317,87.27,17.1906]
[1646586574005,2.975,87.317,87.271,52.45881121]
[1646586574406,3.08063976,87.331,87.272,70.0]
[1646586574804,6.26599574,87.338,87.28,17.1886]
[1646586575004,3.08063976,87.344,87.28,17.1886]
[1646586575304,6.26586197,87.343,87.28,17.1886]
[1646586575505,6.26586197,87.344,87.28,30.9686]
[1646586575709,6.26586197,87.344,87.281,5.726]
[1646586575908,6.26586197,87.344,87.29,17.1867]
[1646586576109,6.26586197,87.344,87.291,62.27187463]
[1646586577310,6.26586197,87.344,87.3,17.1867]
[1646586577709,6.26586197,87.344,87.291,62.27187463]
[1646586579636,24.8366,87.345,87.292,5.726]
[1646586580236,24.8366,87.345,87.3,17.1871]
[1646586581235,24.8366,87.345,87.292,5.726]
[1646586581437,138.2366,87.345,87.291,62.27187463]
[1646586581639,3.08063976,87.341,87.291,62.27187463]
[1646586581836,3.08063976,87.338,87.257,30.3255]
[1646586582036,3.08063976,87.335,87.257,30.3255]
[1646586582238,3.08063976,87.334,87.257,24.5995]
[1646586582438,113.79136954,87.329,87.245,5.727]
[1646586582736,6.26670497,87.328,87.241,24.5995]
[1646586582937,50.21000662,87.32,87.242,51.7813249]
[1646586583540,50.21000662,87.32,87.242,46.0533249]
[1646586583738,17.1967,87.31,87.25,17.1969]
[1646586584636,113.4,87.309,87.242,46.0533249]
[1646586584839,17.2014,87.29,87.243,5.728]
[1646586585039,0.41586854,87.289,87.232,5.729]
[1646586585241,23.05826854,87.289,87.215,5.729]
[1646586585742,0.41586854,87.287,87.215,5.729]
[1646586585943,122.75130622,87.286,87.216,51.84616118]
[1646586586140,0.4208263,87.285,87.217,5.73]
[1646586586340,113.4,87.279,87.217,5.73]
[1646586586540,113.4,87.279,87.216,51.84616118]
[1646586586941,57.69467118,87.287,87.216,51.84616118]
[1646586587143,119.67076353,87.286,87.216,51.84616118]
[1646586587346,17.2059,87.27,87.216,51.84616118]
[1646586587546,63.0098054,87.269,87.216,51.84616118]
[1646586587944,23.8497,87.286,87.216,51.84616118]
[1646586588743,23.8497,87.286,87.217,5.73]
[1646586588942,23.8497,87.286,87.22,17.2027]
[1646586589544,3.08063976,87.303,87.22,17.2027]
[1646586589746,77.9095,87.333,87.22,17.2027]
[1646586589747,3.08063976,87.312,87.221,23.0634]
[1646586589945,48.16635064,87.311,87.24,17.1936]
[1646586590148,48.16635064,87.311,87.241,60.56183272]
[1646586591151,48.16635064,87.311,87.242,5.728]
[1646586591349,48.16635064,87.311,87.25,17.196]
[1646586591648,17.1962,87.31,87.25,17.196]
[1646586593053,17.1962,87.31,87.251,5.728]
[1646586593350,50.60919617,87.309,87.251,5.728]
[1646586593550,17.1962,87.31,87.251,5.728]
[1646586593752,17.1962,87.31,87.26,17.1954]
[1646586594554,17.1962,87.31,87.261,46.04709825]
[1646586598860,17.1962,87.31,87.262,5.728]
[1646586599660,17.1962,87.31,87.261,46.04709825]
[1646586600058,17.1962,87.31,87.233,5.728]
[1646586600259,113.4,87.308,87.233,5.728]
[1646586600458,17.1985,87.3,87.233,5.728]
[1646586601159,63.24270907,87.299,87.234,50.14800483]
[1646586601560,55.06481173,87.279,87.234,50.14800483]
[1646586603262,17.2016,87.29,87.234,50.14800483]
[1646586604469,17.1985,87.3,87.24,17.1993]
[1646586604672,23.6367,87.304,87.24,17.1993]
[1646586604870,6.26923465,87.303,87.24,17.1993]
[1646586605069,23.6367,87.304,87.241,5.729]
[1646586605372,23.6367,87.304,87.234,50.14800483]
[1646586606191,3.08063976,87.324,87.25,17.195]
[1646586607091,3.08063976,87.324,87.251,54.80092617]
[1646586607292,17.1942,87.32,87.26,17.194]
[1646586608895,50.34582031,87.311,87.26,17.194]
[1646586609093,17.1965,87.31,87.251,54.80092617]
[1646586609293,50.34582031,87.311,87.251,54.80092617]
[1646586609796,6.26831829,87.308,87.251,54.80092617]
[1646586609994,17.1985,87.3,87.251,54.80092617]
[1646586610195,50.34582031,87.311,87.251,54.80092617]
[1646586610595,6.26837399,87.308,87.251,54.80092617]
[1646586615705,6.26837399,87.308,87.26,17.1953]
[1646586616305,24.5932,87.309,87.26,17.1953]
[1646586616908,6.26788831,87.308,87.26,17.1953]
[1646586623311,24.5932,87.309,87.26,17.1953]
[1646586623913,3.08063976,87.319,87.26,30.9753]
[1646586624314,3.08063976,87.323,87.26,30.9753]
[1646586624517,3.08063976,87.324,87.26,30.9753]
[1646586625215,1.53217052,87.309,87.26,30.9753]
[1646586625417,1.53217052,87.31,87.27,17.1865]
[1646586625612,1.53217052,87.31,87.28,13.78]
[1646586625813,1.53217052,87.31,87.281,60.34992252]
[1646586626013,58.27338562,87.341,87.281,60.34992252]
[1646586626014,1.53217052,87.309,87.281,60.34992252]
[1646586626212,1.53217052,87.31,87.281,60.34992252]
[1646586626816,1.53217052,87.314,87.281,60.34992252]
[1646586627214,1.53217052,87.314,87.29,17.1866]
[1646586627614,3.08063976,87.339,87.29,17.1866]
[1646586627815,3.08063976,87.34,87.29,17.1866]
[1646586628014,3.08063976,87.348,87.29,30.9666]
[1646586628415,3.08063976,87.349,87.29,30.9666]
[1646586628616,3.08063976,87.353,87.29,30.9666]
[1646586629214,3.08063976,87.353,87.291,5.724]
[1646586629418,3.08063976,87.353,87.3,17.1848]
[1646586629616,3.08063976,87.353,87.301,45.67988372]
[1646586630621,3.08063976,87.355,87.301,45.67988372]
[1646586630818,3.08063976,87.355,87.31,17.1848]
[1646586631018,3.08063976,87.355,87.291,5.724]
[1646586631218,3.08063976,87.353,87.291,5.724]
[1646586631419,3.08063976,87.352,87.291,5.724]
[1646586631619,3.08063976,87.344,87.291,5.724]
[1646586631919,113.4,87.351,87.291,5.724]
[1646586631920,17.1927,87.33,87.291,5.724]
[1646586632117,62.37559285,87.329,87.291,5.724]
[1646586632918,62.37559285,87.329,87.27,17.1919]
[1646586633518,17.1945,87.32,87.262,5.726]
[1646586633721,0.45109855,87.318,87.251,5.727]
[1646586633920,0.45109855,87.318,87.258,60.99206526]
[1646586634121,6.26761235,87.317,87.258,60.99206526]
[1646586634320,113.4,87.316,87.258,60.99206526]
[1646586634525,6.26761235,87.315,87.258,60.99206526]
[1646586634720,50.33975504,87.314,87.258,60.99206526]
[1646586634920,50.33975504,87.314,87.231,5.728]
[1646586635123,113.4,87.309,87.24,17.1989]
[1646586635322,0.40874761,87.308,87.24,17.1989]
[1646586635523,113.4,87.312,87.24,17.1989]
[1646586635822,113.4,87.31,87.24,17.1989]
[1646586636024,6.26814348,87.309,87.241,58.13098537]
[1646586636222,47.74849275,87.299,87.241,58.13098537]
[1646586637227,23.3647,87.313,87.25,17.1973]
[1646586637425,17.1965,87.31,87.25,17.1973]
[1646586638228,54.80467749,87.309,87.25,17.1973]
[1646586639132,17.1982,87.3,87.25,17.1973]
[1646586639545,54.80467749,87.309,87.25,17.1973]
[1646586640146,23.3647,87.313,87.25,17.1973]
[1646586640546,6.26784603,87.312,87.25,17.1973]
[1646586641148,17.1965,87.31,87.25,17.1973]
[1646586641350,67.18485385,87.31,87.25,17.1973]
[1646586641549,17.1965,87.31,87.251,5.728]
[1646586641746,17.1965,87.31,87.26,17.1954]
[1646586642748,17.1965,87.31,87.261,50.60329693]
[1646586645051,6.26810714,87.309,87.261,50.60329693]
[1646586645453,17.198,87.3,87.261,50.60329693]
[1646586645752,23.3647,87.313,87.261,50.60329693]
[1646586646152,6.26798308,87.312,87.261,50.60329693]
[1646586646554,17.1965,87.31,87.261,50.60329693]
[1646586658467,6.26779916,87.309,87.261,50.60329693]
[1646586660572,3.08063976,87.308,87.261,50.60329693]
[1646586660976,17.1984,87.3,87.242,24.8822]
[1646586661174,6.26779916,87.299,87.242,24.8822]
[1646586661975,57.5053021,87.298,87.243,53.79066097]
[1646586662174,6.26779916,87.297,87.243,53.79066097]
[1646586662374,57.5053021,87.298,87.243,53.79066097]
[1646586663476,60.58594186,87.298,87.243,53.79066097]
[1646586663777,57.5053021,87.298,87.243,53.79066097]
[1646586664380,20.27903976,87.3,87.25,17.1972]
[1646586664581,3.08063976,87.3,87.25,17.1972]
[1646586664783,3.08063976,87.301,87.25,17.1972]
[1646586665505,3.08063976,87.3,87.25,17.1972]
[1646586665780,3.08063976,87.301,87.25,17.1972]
[1646586666181,23.3647,87.313,87.25,17.1972]
[1646586666380,23.3647,87.313,87.25,30.9772]
[1646586668383,3.08063976,87.32,87.25,30.9772]
[1646586668584,24.08701758,87.348,87.27,17.1904]
[1646586668585,3.08063976,87.328,87.27,17.1904]
[1646586668883,3.08063976,87.331,87.27,30.9704]
[1646586669083,26.31343976,87.332,87.27,30.9704]
[1646586669282,3.08063976,87.332,87.27,30.9704]
[1646586669483,3.08063976,87.34,87.271,63.98309065]
[1646586669684,3.08063976,87.341,87.29,17.1865]
[1646586669883,3.08063976,87.342,87.291,49.71053002]
[1646586670083,3.08063976,87.343,87.291,49.71053002]
[1646586670483,23.1907,87.347,87.291,49.71053002]
[1646586671285,23.1907,87.347,87.3,17.1875]
[1646586674086,113.4,87.346,87.291,49.71053002]
[1646586675488,17.1908,87.34,87.291,49.71053002]
[1646586681296,113.4,87.339,87.27,17.1932]
[1646586681497,113.4,87.319,87.24,71.0931]